Cogmind - Beta 10.2 @@@ ROGUE MODE // 2022.01.13 @ 20:38:10 Player: SURFACESEEKER Result: Destroyed by Enhanced Grunt with Neutron Cannon Performance ------------- Evolutions (3) 1500 Regions Visited (11) 2200 Robots Destroyed (90) 450 Value Destroyed (3266) 3266 Prototype IDs (240) 4800 Alien Tech Used (0) 0 Bonus (3691) 3691 TOTAL SCORE: 15907 Bonus ------- High Alert Combat Kills 91 Aligned with FarCom 300 Met Data Miner 300 Used Data Conduit 3000 Cogmind --------- Core Integrity 0/700 Matter 246/300 Energy 72/100 System Corruption 0% Temperature Cool (6) Movement Core (650) Ox12 Location -7/Data Miner Parts ------- > --- POWER (2) -------- (None) > --- PROPULSION (4) --- (None) > --- UTILITY (5) ------ Large Storage Unit Large Storage Unit Improved Terrain Scan Processor > --- WEAPON (2) ------- Gauss Cannon > --- INVENTORY (16) --- Advanced Heat Sink Large Storage Unit Large Storage Unit Advanced Signal Interpreter Transmission Jammer System Backup Module Trap Reconfigurator Flak Gun KE Penetrator Advanced Assault Cannon Remote Datajack Chainsword Chainsword Peak State ------------ > --- POWER ------------ Light Nuclear Core Light Angular Momentum Engine > --- PROPULSION ------- Improved Titanium Leg Improved Titanium Leg Flexi-carbon Leg Flexi-carbon Leg > --- UTILITY ---------- Large Storage Unit Large Storage Unit Improved Terrain Scan Processor Microactuators System Backup Module > --- WEAPON ----------- Chainsword Chainsword > --- INVENTORY -------- Light Nuclear Core Carbon-fiber Leg Improved Cooling System Large Storage Unit Large Storage Unit Improved Terrain Scanner Transmission Jammer Improved Medium Armor Plating Trap Reconfigurator High-powered Shotgun Flak Gun Advanced Assault Cannon Gauss Cannon Precision Grenade Launcher Remote Datajack [Rating: 52] Favorites ----------- Power Light Angular Momentum Engine Engine Light Angular Momentum Engine Power Core Light Nuclear Core Propulsion Aluminum Leg Treads Armored Treads Leg Aluminum Leg Hover Unit Gravmag System Flight Unit Cesium-ion Thruster Utility Large Storage Unit Device Improved Terrain Scanner Storage Large Storage Unit Processor Seismic Analyzer Protection Improved Medium Armor Plating Weapon Light Assault Rifle Energy Gun Small Laser Ballistic Gun Light Assault Rifle Ballistic Cannon Gauss Cannon Launcher Rocket Launcher Special Weapon Remote Datajack Slashing Weapon Chainsword Build | -11 -10 -10 -9 -9 -9 -8 -8 -7 -7 -7 -7 ------- Run | Scr Mat Min Mat Min Exi Min Mat Fac Low Low Dat Slots Evolved 6 | . . . 2 . . . 2 2 . . . Power 1 | . . . . . . . . 1 . . . Propulsion 2 | . . . . . . . 2 . . . . Utility 3 | . . . 2 . . . . 1 . . . Weapon . | . . . . . . . . . . . . Parts Attached 179 | 8 5 4 26 5 . 2 15 71 25 11 7 Power 19 | 1 2 1 2 . . . . 6 6 1 . Engine 15 | 1 2 1 2 . . . . 5 3 1 . Core 4 | . . . . . . . . 1 3 . . Reactor . | . . . . . . . . . . . . Propulsion 39 | 2 1 1 7 1 . . 7 11 6 3 . Treads 13 | . . . 6 1 . . 1 3 . 2 . Leg 22 | 2 1 1 1 . . . 6 7 3 1 . Wheel . | . . . . . . . . . . . . Hover 2 | . . . . . . . . 1 1 . . Flight 2 | . . . . . . . . . 2 . . Utility 58 | 2 . 1 3 . . . 4 35 7 6 . Device 46 | 1 . 1 1 . . . 2 30 5 6 . Storage 5 | . . . 2 . . . 2 1 . . . Processor 2 | 1 . . . . . . . 1 . . . Hackware . | . . . . . . . . . . . . Protection 5 | . . . . . . . . 3 2 . . Artifact . | . . . . . . . . . . . . Weapon 63 | 3 2 1 14 4 . 2 4 19 6 1 7 Energy Gun 11 | 1 . . 5 1 . . . 4 . . . Energy Cannon . | . . . . . . . . . . . . Ballistic Gun 21 | 2 2 . 6 2 . 1 . 2 2 1 3 Ballistic Cannon 11 | . . . . . . . 2 5 3 . 1 Launcher 4 | . . 1 1 . . . . 1 . . 1 Special Weapon 3 | . . . 2 . . . . 1 . . . Impact Weapon . | . . . . . . . . . . . . Slashing Weapon 13 | . . . . 1 . 1 2 6 1 . 2 Piercing Weapon . | . . . . . . . . . . . . Special Melee Weapon . | . . . . . . . . . . . . Unidentified Prototypes 3 | . . . 1 . . . . 2 . . . Parts Lost 43 | . 1 . 5 1 . . . 4 17 4 11 Power 9 | . . . 1 . . . . 2 5 . 1 Propulsion 16 | . . . 1 . . . . 2 7 2 4 Utility 8 | . . . . . . . . . 4 2 2 Weapon 10 | . 1 . 3 1 . . . . 1 . 4 Highest Loss Streak 11 | . 1 . 2 1 . . . 2 10 4 11 Average Slot Usage (%) 95 | . 99 100 95 100 100 100 100 97 92 87 90 Engine 9 | . 14 14 10 11 11 11 9 10 8 5 6 Core 1 | . . . . . . . . 1 2 . . Treads 7 | . . . 14 22 22 22 . 5 . 11 14 Leg 16 | . 28 28 6 . . . 35 23 17 2 . Flight 3 | . . . . . . . . . 6 15 14 Device 13 | . 14 14 11 11 11 11 9 14 13 13 14 Storage 15 | . . . 21 22 22 22 18 15 15 15 15 Processor 8 | . 14 14 11 11 11 11 9 6 7 7 7 Energy Gun 1 | . 10 . 8 . . . . 1 . . . Ballistic Gun 7 | . 17 22 8 19 22 20 6 . 1 10 12 Ballistic Cannon 3 | . . . . . . . 4 4 5 3 . Slashing Weapon 4 | . . . . 2 . 1 7 7 7 . 1 Naked Turns . | . . . . . . . . . . . . Heaviest Build 70 | 6 6 9 48 44 43 44 55 63 70 55 53 Greatest Support 80 | 20 20 20 40 40 40 40 40 80 80 40 40 Greatest Overweight (x) 16 | . . . 12 1 1 1 1 1 16 3 1 Average Overweight (x) 1 | . . . . 1 1 1 1 . 2 1 1 Largest Inventory Capacity 16 | 4 4 4 16 16 16 16 16 16 16 16 16 Average Capacity 14 | 4 4 4 15 16 16 16 16 16 16 16 16 Most Carried 16 | 4 4 4 16 16 16 16 16 16 16 16 16 Average Carried 13 | 2 3 3 11 15 15 16 15 15 13 15 15 Final Capacity 16 | 4 4 4 16 16 16 16 16 16 16 16 16 Final Carried 16 | 4 4 4 15 15 16 16 16 16 12 16 13 Class Distribution -------------------- 31% | Mutant 24% | Scavenger-Assassin 21% | Scavenger-Mutant 11% | Scavenger-Skirmisher 5% | Skirmisher 4% | Assassin Dominant Class ---------------- Mutant | -10/Materials Scavenger-Mutant | -10/Mines Mutant | -9/Materials Mutant | -9/Mines Mutant | -9/Exiles Skirmisher | -8/Mines Scavenger-Assassin | -8/Materials Scavenger-Assassin | -7/Factory Mutant | -7/Lower Caves Scavenger-Mutant | -7/Lower Caves Scavenger-Mutant | -7/Data Miner Resources | -11 -10 -10 -9 -9 -9 -8 -8 -7 -7 -7 -7 ----------- Run | Scr Mat Min Mat Min Exi Min Mat Fac Low Low Dat Matter Collected 2769 | 296 77 70 352 238 . . 158 739 566 273 . Remotely 126 | . . . . . . . . . . 126 . Salvage Created 3096 | 85 176 238 643 227 . . 41 1021 550 115 . Parts 177 | 13 16 8 42 17 . . 4 51 21 5 . Haulers Intercepted 2 | . . . . . . . 1 1 . . . Recyclers Shooed 2 | . . 1 . . . . . 1 . . . Parts Field Recycled . | . . . . . . . . . . . . Retrieved Matter . | . . . . . . . . . . . . Parts Self-Destructed 17 | . . . . . . . . . 14 3 . Prevented 1 | . . . . . . . . . . 1 . Kills | -11 -10 -10 -9 -9 -9 -8 -8 -7 -7 -7 -7 ------- Run | Scr Mat Min Mat Min Exi Min Mat Fac Low Low Dat Combat Hostiles Destroyed 76 | . 8 4 18 8 . . . 21 14 3 . Melee 18 | . . . 2 . . . . 9 7 . . Guns 34 | . 8 2 11 8 . . . 1 3 1 . Cannons 13 | . . . . . . . . 7 4 2 . AOE 11 | . . 2 5 . . . . 4 . . . Classes Destroyed 14 | 1 2 2 2 1 . . 1 2 2 1 . Worker 3 | . . 1 2 . . . . . . . . Builder 1 | . . . . . . . . 1 . . . Tunneler 4 | 4 . . . . . . . . . . . Hauler 2 | . . . . . . . 1 1 . . . Recycler 2 | . . 1 . . . . . 1 . . . Watcher 2 | . . . 1 . . . . 1 . . . Swarmer 21 | . 6 . 4 4 . . . . 7 . . Grunt 34 | . 2 4 12 2 . . . 11 3 . . Duelist 2 | . . . . 2 . . . . . . . Sentry 3 | . . . 2 . . . . . 1 . . Hunter 1 | . . . . . . . . . 1 . . Programmer 13 | . . . . . . . . 10 1 2 . Thief 1 | . . . . . . . . . 1 . . Mutant 1 | . . . . . . . . . . 1 . Best Kill Streak 7 | 2 6 3 7 3 . . 1 4 5 1 . Combat Bots Only 6 | . 6 2 5 3 . . . 3 5 1 . Max Kills in Single Turn 4 | 1 2 1 2 1 . . 1 4 1 1 . Gunslinging 1 | . 1 . . . . . . . . . . Exploded 3 | . . 1 2 . . . . 3 . . . Melee 1 | . . . 1 . . . . 1 1 . . Uniques/NPCs Destroyed . | . . . . . . . . . . . . Combat | -11 -10 -10 -9 -9 -9 -8 -8 -7 -7 -7 -7 -------- Run | Scr Mat Min Mat Min Exi Min Mat Fac Low Low Dat Damage Taken 7585 | 3 315 365 1322 647 . . . 1583 2057 229 1064 Core 1308 | . 72 149 210 136 . . . 276 209 30 226 Absorbed by Shields . | . . . . . . . . . . . . Core Remaining (%) 56 | 100 . 11 . . . 13 100 . . . . Volleys Fired 238 | 18 25 28 65 28 . 1 2 39 18 10 4 Largest 2 | 2 2 2 2 2 . 2 1 2 2 2 2 Hottest 120 | 60 60 40 120 60 . 40 48 112 96 76 73 Shots Fired 434 | 36 50 48 113 56 . 2 2 70 32 20 5 Gun 334 | 36 50 40 101 56 . 2 . 20 17 10 2 Cannon 74 | . . . . . . . 2 46 15 10 1 Launcher 18 | . . 8 8 . . . . . . . 2 Special 8 | . . . 4 . . . . 4 . . . Kinetic 306 | 21 27 40 56 50 . 2 2 53 32 20 3 Thermal 105 | 15 23 . 49 6 . . . 12 . . . Explosive 18 | . . 8 8 . . . . . . . 2 Electromagnetic 1 | . . . . . . . . 1 . . . Robot Hit Streak 13 | 5 7 9 12 13 . . . 4 5 7 3 Robot Miss Streak 7 | 3 4 3 2 1 . . . 3 7 5 1 Penetration Max 1 | . . . . . . . . 1 . . . Secondary Targets 5 | . 2 . . 3 . . . . . . . Max Gunslinging Chain 1 | . 1 . . 1 . . . . . . . Shots Hit Robots 337 | 20 29 28 73 46 . . 1 71 50 15 4 Core Hits 182 | 9 14 15 43 20 . . 1 36 24 12 8 Critical Hits 9 | . . 1 2 1 . . . 4 . 1 . Critical Kills 4 | . . 1 1 . . . . 1 . 1 . Critical Parts Destroyed 5 | . . . 1 1 . . . 3 . . . Melee Attacks 152 | . . . . 3 . 2 4 102 40 . 1 Impact . | . . . . . . . . . . . . Slashing 152 | . . . . 3 . 2 4 102 40 . 1 Piercing . | . . . . . . . . . . . . Sneak Attacks 5 | . . . . . . . 1 3 . . 1 Combat Hostiles . | . . . . . . . . . . . . Follow-up Attacks 16 | . . . . . . . . 10 6 . . Damage Inflicted 8372 | 193 272 452 1328 381 . . 107 3362 1500 302 475 Guns 2440 | 185 272 190 780 381 . . . 135 247 209 41 Cannons 1044 | . . . . . . . . 690 232 93 29 Explosions 1655 | . . 262 494 . . . . 591 . . 308 Melee 3096 | . . . . . . . 107 1871 1021 . 97 Ramming 137 | 8 . . 54 . . . . 75 . . . Kinetic 2763 | 108 131 190 407 349 . . . 727 479 302 70 Thermal 1070 | 77 141 . 373 32 . . . 447 . . . Explosive 1064 | . . 262 494 . . . . . . . 308 Electromagnetic 242 | . . . . . . . . 242 . . . Impact . | . . . . . . . . . . . . Slashing 3096 | . . . . . . . 107 1871 1021 . 97 Piercing . | . . . . . . . . . . . . Highest Corruption 5 | . . . . . . . . 4 5 . . Average Corruption 1 | . . . . . . . . 1 3 . . Corruption Purged 10 | . . . . . . . . 5 5 . . Effects 41 | . . . . . . . . 17 24 . . Message Errors 13 | . . . . . . . . 8 5 . . Matter Fused 8 | . . . . . . . . 1 7 . . Heat Flow Errors 6 | . . . . . . . . 1 5 . . Energy Discharges 5 | . . . . . . . . 3 2 . . Parts Rejected 1 | . . . . . . . . 1 . . . Data Loss (minor) 5 | . . . . . . . . 2 3 . . Data Loss (major) 1 | . . . . . . . . . 1 . . Targeting Errors 2 | . . . . . . . . 1 1 . . Overload Shots . | . . . . . . . . . . . . Overflow Damage 342 | . . 4 . . . . . 141 110 . 87 Projectiles 7 | . . . . . . . . 5 2 . . Explosions 39 | . . 4 . . . . . 35 . . . Melee 296 | . . . . . . . . 101 108 . 87 Knockbacks 12 | . . . . . . . . 11 1 . . Impact . | . . . . . . . . . . . . Kinetic 10 | . . . . . . . . 9 1 . . Secondary 2 | . . . . . . . . 2 . . . Self-Inflicted Damage 96 | 3 . 49 38 . . . . 6 . . . Shots 2 | . . 1 1 . . . . . . . . Rammed 26 | 3 . . 21 . . . . 2 . . . Targets Rammed 36 | 3 . . 22 . . . . 11 . . . Kicked 9 | . . . . . . . . 9 . . . Crushed 1 | . . . 1 . . . . . . . . Highest Temperature 265 | 40 120 28 54 32 . . . 234 265 . 9 Average Temperature 44 | 19 40 13 12 10 . . . 65 109 . 6 Received Heat Transfer 1779 | . 114 177 639 72 . . . 189 450 . 138 Siege Activations . | . . . . . . . . . . . . Robots Corrupted . | . . . . . . . . . . . . Combat Hostiles . | . . . . . . . . . . . . Parts Fried 2 | . . . . . . . . 2 . . . Impact Corruptions . | . . . . . . . . . . . . Robots Melted . | . . . . . . . . . . . . Combat Hostiles . | . . . . . . . . . . . . Parts Melted 7 | . 1 . 2 . . . . 4 . . . Heat Transferred 1923 | 175 325 . 850 75 . . . 498 . . . Parts Sabotaged . | . . . . . . . . . . . . Parts Stolen . | . . . . . . . . . . . . Parts Stripped . | . . . . . . . . . . . . Power Chain Reactions 1 | . . . . . . . . 1 . . . Missiles Intercepted . | . . . . . . . . . . . . Alert | -11 -10 -10 -9 -9 -9 -8 -8 -7 -7 -7 -7 ------- Run | Scr Mat Min Mat Min Exi Min Mat Fac Low Low Dat Peak Influence 707 | 20 243 70 314 192 . 2 37 707 . . . Initial 122 | . 13 16 21 122 . . . 16 . . . Average 110 | 6 89 33 110 155 . . 2 154 . . . Maximum Alert Level 3 | . 1 . 1 . . . . 3 . . . Low Security (%) 80 | 100 76 100 88 100 . 100 100 68 . . . Level 1 14 | . 23 . 11 . . . . 22 . . . Level 2 4 | . . . . . . . . 8 . . . Level 3 . | . . . . . . . . . . . . Level 4 . | . . . . . . . . . . . . Level 5 . | . . . . . . . . . . . . High Security . | . . . . . . . . . . . . Max Security . | . . . . . . . . . . . . Squads Dispatched 17 | . . . 1 . . . 2 14 . . . Investigation 5 | . . . 1 . . . 1 3 . . . Extermination 10 | . . . . . . . . 10 . . . Reinforcement 2 | . . . . . . . 1 1 . . . Assault . | . . . . . . . . . . . . Garrison . | . . . . . . . . . . . . Intercept . | . . . . . . . . . . . . Construction Impeded . | . . . . . . . . . . . . Haulers Reinforced 1 | . . . . . . . . 1 . . . Stealth | -11 -10 -10 -9 -9 -9 -8 -8 -7 -7 -7 -7 --------- Run | Scr Mat Min Mat Min Exi Min Mat Fac Low Low Dat Distress Signals 2 | . . . 1 . . . . 1 . . . Communications Jammed 12 | . . . . . . . . 12 . . . Distress Signals 11 | . . . . . . . . 11 . . . Times Spotted 126 | . 14 4 25 11 . . 2 33 29 4 4 Peak Tracking Total 8 | . 8 2 5 6 . . 2 5 6 1 4 Tactical Retreats 24 | . . . 2 3 . . . 3 16 . . Traps | -11 -10 -10 -9 -9 -9 -8 -8 -7 -7 -7 -7 ------- Run | Scr Mat Min Mat Min Exi Min Mat Fac Low Low Dat Traps Triggered 7 | . . . 3 . . . 1 3 . . . Indirectly . | . . . . . . . . . . . . Trap Hack Attempts . | . . . . . . . . . . . . Triggered . | . . . . . . . . . . . . Disarmed . | . . . . . . . . . . . . Reprogrammed . | . . . . . . . . . . . . Reused 9 | . . . . . . . . 9 . . . Traps Reconfigurated 30 | . . . . . . . 2 28 . . . Traps Extracted . | . . . . . . . . . . . . Installed . | . . . . . . . . . . . . Triggered 10 | . . . . . . . . 9 . 1 . Exploded 1 | . . . . . 1 . . . . . . Machines | -11 -10 -10 -9 -9 -9 -8 -8 -7 -7 -7 -7 ---------- Run | Scr Mat Min Mat Min Exi Min Mat Fac Low Low Dat Machines Disabled 31 | . . 1 3 . . . 2 25 . . . Max in Single Turn 4 | . . 1 1 . . . 1 4 . . . Machines Sabotaged . | . . . . . . . . . . . . Garrisons Compromised . | . . . . . . . . . . . . Overloaded Fab Kills . | . . . . . . . . . . . . Fab Network Shutdowns . | . . . . . . . . . . . . Hacking | -11 -10 -10 -9 -9 -9 -8 -8 -7 -7 -7 -7 --------- Run | Scr Mat Min Mat Min Exi Min Mat Fac Low Low Dat Machines Accessed 27 | . 3 . 7 . 1 . . 11 1 . 4 Terminals 15 | . 3 . 5 . . . . 6 1 . . Fabricators 3 | . . . . . . . . 3 . . . Repair Stations . | . . . . . . . . . . . . Recycling Units 4 | . . . 2 . . . . 2 . . . Scanalyzers . | . . . . . . . . . . . . Garrison Access . | . . . . . . . . . . . . Total Hacks 74 | . 7 . 15 . 1 . . 24 1 . 26 Successful 52 | . 3 . 11 . 1 . . 10 1 . 26 Failed 22 | . 4 . 4 . . . . 14 . . . Catastrophic 3 | . 1 . . . . . . 2 . . . Database Lockouts . | . . . . . . . . . . . . Manual 38 | . 8 . 14 . 1 . . 13 2 . . Terminals 33 | . 7 . 10 . . . . 15 1 . . Fabricators 6 | . . . . . . . . 6 . . . Repair Stations . | . . . . . . . . . . . . Recycling Units 8 | . . . 5 . . . . 3 . . . Scanalyzers . | . . . . . . . . . . . . Garrison Access . | . . . . . . . . . . . . Terminal Hacks 32 | . . . 1 . 1 . . 3 1 . 26 Record 13 | . . . . . . . . 1 1 . 11 Part Schematic 10 | . . . . . . . . 1 . . 9 Robot Schematic 3 | . . . . . . . . . . . 3 Prototype ID Bank 3 | . . . . . . . . . . . 3 Branch Access Points 2 | . . . 1 . . . . 1 . . . EX-Prototype ID Bank 1 | . . . . . 1 . . . . . . Fabricator Hacks 2 | . . . . . . . . 2 . . . Build 2 | . . . . . . . . 2 . . . Repair Station Hacks . | . . . . . . . . . . . . Recycling Unit Hacks 2 | . . . 1 . . . . 1 . . . Report Inventory 1 | . . . 1 . . . . . . . . Retrieve Components 1 | . . . . . . . . 1 . . . Scanalyzer . | . . . . . . . . . . . . Garrison Access Hacks . | . . . . . . . . . . . . Unauthorized Hacks 16 | . 3 . 9 . . . . 4 . . . Terminals 12 | . 3 . 6 . . . . 3 . . . Track 5 | . 3 . 2 . . . . . . . . Assimilate 1 | . . . 1 . . . . . . . . Botnet 4 | . . . 3 . . . . 1 . . . Detonate 2 | . . . . . . . . 2 . . . Fabricators 1 | . . . . . . . . 1 . . . Download 1 | . . . . . . . . 1 . . . Repair Stations . | . . . . . . . . . . . . Recycling Units 3 | . . . 3 . . . . . . . . Mask 2 | . . . 2 . . . . . . . . Tunnel 1 | . . . 1 . . . . . . . . Scanalyzers . | . . . . . . . . . . . . Garrison Access . | . . . . . . . . . . . . Data Cores Recovered . | . . . . . . . . . . . . Used . | . . . . . . . . . . . . Hacking Detections 16 | . 2 . 4 . . . . 9 1 . . Full Trace Events 2 | . 1 . . . . . . 1 . . . Feedback Events 1 | . . . . . . . . 1 . . . Corruption 1 | . . . . . . . . 1 . . . Feedback Blocked . | . . . . . . . . . . . . Robot Schematics Acquired 3 | . . . . . . . . . . . 3 Robots Built . | . . . . . . . . . . . . Matter . | . . . . . . . . . . . . Time . | . . . . . . . . . . . . Total Robot Build Rating . | . . . . . . . . . . . . Part Schematics Acquired 11 | . . . . . . . . 2 . . 9 Parts Built 4 | . . . . . . . . 4 . . . Matter 380 | . . . . . . . . 380 . . . Time 190 | . . . . . . . . 190 . . . Total Part Build Rating 20 | . . . . . . . . 20 . . . Parts Repaired . | . . . . . . . . . . . . Time . | . . . . . . . . . . . . Parts Recycled . | . . . . . . . . . . . . Recycled Matter . | . . . . . . . . . . . . Retrieved Matter . | . . . . . . . . . . . . Retrieved Components 4 | . . . . . . . . 4 . . . Parts Scanalyzed . | . . . . . . . . . . . . Part Schematics Acquired . | . . . . . . . . . . . . Parts Damaged . | . . . . . . . . . . . . Bothacking | -11 -10 -10 -9 -9 -9 -8 -8 -7 -7 -7 -7 ------------ Run | Scr Mat Min Mat Min Exi Min Mat Fac Low Low Dat Used RIF Installer . | . . . . . . . . . . . . Robots Hacked . | . . . . . . . . . . . . Non-combat . | . . . . . . . . . . . . Combat . | . . . . . . . . . . . . Robot Hacks Applied . | . . . . . . . . . . . . Relay Couplers Released . | . . . . . . . . . . . . Robots Rewired . | . . . . . . . . . . . . Allies Hacked . | . . . . . . . . . . . . Hacks Repelled . | . . . . . . . . . . . . Allies | -11 -10 -10 -9 -9 -9 -8 -8 -7 -7 -7 -7 -------- Run | Scr Mat Min Mat Min Exi Min Mat Fac Low Low Dat Total Allies . | . . . . . . . . . . . . Largest Group . | . . . . . . . . . . . . Highest-Rated Group . | . . . . . . . . . . . . Highest-Rated Ally . | . . . . . . . . . . . . Total Orders . | . . . . . . . . . . . . Ally Attacks . | . . . . . . . . . . . . Total Damage . | . . . . . . . . . . . . Kills . | . . . . . . . . . . . . Allies Corrupted . | . . . . . . . . . . . . Allies Melted . | . . . . . . . . . . . . Intel | -11 -10 -10 -9 -9 -9 -8 -8 -7 -7 -7 -7 ------- Run | Scr Mat Min Mat Min Exi Min Mat Fac Low Low Dat Robot Analysis Total 115 | . . . . . . . . . . . 115 Derelict Logs Recovered 4 | . . 1 . . . . . . 1 2 . Drone Launches . | . . . . . . . . . . . . Drone Recoveries . | . . . . . . . . . . . . Exploration | -11 -10 -10 -9 -9 -9 -8 -8 -7 -7 -7 -7 ------------- Run | Scr Mat Min Mat Min Exi Min Mat Fac Low Low Dat Turns Passed 19261 | 334 449 1155 1526 557 581 1300 582 7283 3017 2107 370 Spaces Moved 7744 | 220 251 401 597 245 304 420 250 2795 983 1089 189 Core 25 | 7 . . 2 . . . . . 16 . . Treads 3401 | . . . 397 245 304 420 . 984 . 862 189 Legs 4293 | 213 251 401 198 . . . 250 1811 945 224 . Wheels . | . . . . . . . . . . . . Hover . | . . . . . . . . . . . . Flight 25 | . . . . . . . . . 22 3 . Fastest Speed 50 | 50 120 120 150 190 190 190 150 125 120 150 185 Average Speed 167 | 117 120 120 176 190 190 190 150 157 197 181 185 Slowest Speed 850 | 120 120 120 650 190 190 190 150 180 850 277 185 Overloaded Moves . | . . . . . . . . . . . . Propulsion Burnouts . | . . . . . . . . . . . . Robots Hopped . | . . . . . . . . . . . . Cave-ins Triggered . | . . . . . . . . . . . . Exploration Rate (%) 48 | 8 29 34 44 40 61 65 21 40 75 88 76 Regions Visited 11 Branch Regions 7 Pre-discovered Areas 26 | . . . 1 . . . . . . . 25 Known Exits Taken 3 | . . 1 1 . . . . 1 . . . Unknown Exits Taken 8 | 1 1 . . 1 1 1 1 . 1 1 . Scrap Searched 6 | . . 1 . 2 . . . . 1 2 . Spaces Dug 30 | . . . 4 3 . 2 3 18 . . . Terrain Destroyed 289 | . . 70 43 3 . 2 3 155 4 4 5 Melee 25 | . . . . 3 . 2 3 17 . . . Projectile 18 | . . . 4 . . . . 6 4 4 . AOE 246 | . . 70 39 . . . . 132 . . 5 Terrain Rammed . | . . . . . . . . . . . . Walls Destroyed . | . . . . . . . . . . . . Machines Disabled . | . . . . . . . . . . . . Actions | -11 -10 -10 -9 -9 -9 -8 -8 -7 -7 -7 -7 --------- Run | Scr Mat Min Mat Min Exi Min Mat Fac Low Low Dat Total 13386 | 263 354 1035 938 285 308 917 446 5452 1990 1197 201 Wait 4909 | . 66 599 183 . 4 493 166 2407 917 74 . Move 7733 | 219 250 400 596 244 303 419 249 2794 982 1088 189 Hop . | . . . . . . . . . . . . Pick Up 97 | 13 2 1 34 3 1 . 5 16 11 11 . Fast Attach 23 | . 5 1 1 . . . . 12 1 3 . Attach 52 | 8 . . 16 1 . . 2 3 15 4 3 Detach 1 | . . . . . . . . . 1 . . Swap 104 | . . 3 9 4 . 2 13 56 9 4 4 Drop 60 | 2 6 3 12 2 . . 5 24 3 3 . Fire 238 | 18 25 28 65 28 . 1 2 39 18 10 4 Melee 128 | . . . . 3 . 2 4 85 33 . 1 Ram . | . . . . . . . . . . . . Kick 14 | 3 . . . . . . . 11 . . . Crush 22 | . . . 22 . . . . . . . . Escape Stasis 5 | . . . . . . . . 5 . . . Rewire . | . . . . . . . . . . . . Trap . | . . . . . . . . . . . . Miscellaneous . | . . . . . . . . . . . . Route ------- -11/Scrapyard -10/Materials (discovered 2 exits: *Mat / [*Min]) -10/Mines (discovered 2 exits: *Mat x2) -9/Materials (discovered 2 exits: [*Mat] / *Min) -9/Mines -9/Exiles -8/Mines -8/Materials -7/Factory (discovered 4 exits: *Sto x2 / *Low x2) -7/Lower Caves -7/Lower Caves (discovered 2 exits: [*Fac] / *Dat) -7/Data Miner (discovered 1 exit: [*Pro]) History --------- Turn | Location | Event 4 | -11/Scrapyard | Discovered new exit (range 15) 335 | -11/Scrapyard | Entered Materials 336 | -10/Materials | Build established: Mutant 757 | -10/Materials | Discovered new exit (range 3) 758 | -10/Materials | Discovered new exit (range 14) 784 | -10/Materials | Entered Mines 791 | -10/Mines | Received a Rocket Launcher from a helpful Derelict 955 | -10/Mines | Build established: Scavenger-Mutant 1531 | -10/Mines | Identified exit to Materials 1549 | -10/Mines | Discovered exit to Materials (range 12) 1593 | -10/Mines | Core integrity fell below 50% 1597 | -10/Mines | Core integrity fell below 20% 1939 | -10/Mines | Entered Materials 1939 | -9/Materials | Evolved 2 slots: Utility x2 2703 | -9/Materials | Build established: Mutant 2974 | -9/Materials | Identified exit to Mines 2992 | -9/Materials | Discovered new exit (range 14) 3307 | -9/Materials | Core integrity fell below 50% 3465 | -9/Materials | Entered Mines 3849 | -9/Mines | Found a hidden stash of uninstalled traps 3888 | -9/Mines | Core integrity fell below 20% 3993 | -9/Mines | Discovered new exit (range 12) 4008 | -9/Mines | Deemed a non-threat by the Exiles lab entrance 4022 | -9/Mines | Entered Exiles 4085 | -9/Exiles | Met 8R-AWN 4140 | -9/Exiles | Met EX-HEX 4247 | -9/Exiles | Met EX-BIN 4288 | -9/Exiles | Aligned with FarCom system 4290 | -9/Exiles | Given EX-Vault access code 4351 | -9/Exiles | Opened EX-Vault 4368 | -9/Exiles | Found Trap Reconfigurator 4413 | -9/Exiles | Warned to stay clear of 0b10 Research branches 4429 | -9/Exiles | Exiles lab attacked by MAIN.C 4588 | -9/Exiles | Discovered new exit (range 10) 4603 | -9/Exiles | Left Exiles lab with Trap Reconfigurator 4603 | -9/Exiles | Entered Mines 5301 | -8/Mines | Build established: Skirmisher 5310 | -8/Mines | Discovered new exit (range 8) 5903 | -8/Mines | Entered Materials 5903 | -8/Materials | Evolved 2 slots: Propulsion x2 6314 | -8/Materials | Discovered new exit (range 16) 6324 | -8/Materials | Build established: Scavenger-Assassin 6485 | -8/Materials | Entered Factory 6485 | -7/Factory | Evolved 2 slots: Power x1, Utility x1 7017 | -7/Factory | Build established: Scavenger-Skirmisher 8586 | -7/Factory | Build established: Scavenger-Assassin 12593 | -7/Factory | Build established: Scavenger-Skirmisher 12915 | -7/Factory | Discovered new exit (range 16) 12971 | -7/Factory | Identified exit to Storage 12971 | -7/Factory | Identified exit to Lower Caves 12990 | -7/Factory | Build established: Scavenger-Assassin 13295 | -7/Factory | Build established: Assassin 13520 | -7/Factory | Fabricated Flexi-carbon Leg? 13641 | -7/Factory | Fabricated Flexi-carbon Leg? 13768 | -7/Factory | Entered Lower Caves 14035 | -7/Lower Caves | Learned location of 1 exit from Factory 14071 | -7/Lower Caves | Build established: Mutant 15179 | -7/Lower Caves | Attracted the attention of an 0b10 checkpoint 15198 | -7/Lower Caves | Core integrity fell below 50% 15248 | -7/Lower Caves | Lost 10 parts (3p5n2u) 16488 | -7/Lower Caves | Lost 5 parts (2p1n1u1w) 16776 | -7/Lower Caves | Discovered new exit (range 6) 16785 | -7/Lower Caves | Entered another Lower Caves area 16785 | -7/Lower Caves | Discovered new exit (range 12) 16821 | -7/Lower Caves | Learned Factory security intel 17219 | -7/Lower Caves | Encountered a Warlord checkpoint 17284 | -7/Lower Caves | Lost 4 parts (2n2u) 17566 | -7/Lower Caves | Learned Factory stockpile data 17568 | -7/Lower Caves | Build established: Scavenger-Mutant 18082 | -7/Lower Caves | Discovered new exit (range 8) 18892 | -7/Lower Caves | Entered Data Miner 18892 | -7/Data Miner | Discovered new exit (range 6) 18928 | -7/Data Miner | Met Data Miner 18992 | -7/Data Miner | Acquired the access code to Warlord's prototype stash 18992 | -7/Data Miner | Learned location of Section 7 (-2) 19031 | -7/Data Miner | Received God Mode back door access code from Data Miner 19227 | -7/Data Miner | Interfaced with the Data Conduit 19247 | -7/Data Miner | Core integrity fell below 20% 19262 | -7/Data Miner | Destroyed by Enhanced Grunt with Neutron Cannon Last Messages --------------- 19227_ Interfacing with system... Downloaded 115 analysis records. Downloaded 709 prototype IDs. Downloaded central machine database. Downloaded 24 destinations. Downloaded encryption format records. Connection remotely terminated. [Achievement: Unlimited Data] 19243_ Cesium-ion Thruster destroyed. 19252_ Battle Rifle destroyed. 19252_ Cesium-ion Thruster destroyed. 19252_ Arm. Treads destroyed. 19254_ Lgt. Treads destroyed. 19255_ Prc. Grenade Launcher destroyed. 19255_ Lrn. Tractor Beam destroyed. 19257_ Imp. Deuterium Engine destroyed. 19257_ Mak. Shrapnel Gun destroyed. 19259_ Adv. Sensor Array destroyed. 19260_ Slug penetrates Enhanced Grunt. 19260_ Hpw. Shotgun destroyed. Map ----- +----------------------------------------------------+ | | | | | | | | | | | | | | | | | | | | | | | | | | | | | ?????????????????????????????????????????? | | ?????????????????????????????????????????? | | ?????????????????????????????????????????? | | ?????????????????????????????????????????? | | ?????????????????????????????????????####? | | ??????###############??????????????### #? | | ?????"""""""""""""""###### # # ???## #? | | ????""""""""" """ """" #### < ##? | | ????""""""""" g ## | | ????"""""" g | | ???""""""" g | | ???"""""" @ g | | ???""""""" | | ????"""""" " """""""""""## | | ????""""""" """"# ############? | | ????""""""" """""###??????????????? | | ?????"""""""" "#####????????????????? | | ??????######"## "#????????????????????? | | ???????????#"### "#????????????????????? | | ???????????#"### "#????????????????????? | | ???????????#"?# "#????????????????????? | | ?????????????## "#????????????????????? | | ?????????????# "#????????????????????? | | ?????????????### "#????????????????????? | | ???????????????# "##???????????????????? | | ??????????????## ""#???????????????????? | | ???????????#?## ""#???????????????????? | | ??????????##"#"X ""#???????????????????? | | ??????????""""" "####????????????????? | | ??????????""""" X"""""????????????????? | | ??????????##"#"X "##"#????????????????? | | ???????????#?## X""""#????????????????? | | ??????????????## "##"#????????????????? | | ???????????????#######???????????????????? | | ?????????????????????????????????????????? | | ?????????????????????????????????????????? | +----------------------------------------------------+ Best States ------------- Heat Dissipation 61 Energy Generation 27 Energy Capacity 480 Matter Stores 300 Matter Capacity 300 Sight Range 16 Robot Scan Range 16 Terrain Scan Range 16 Terrain Scan Density 110 Jamming Range 8 Armor Coverage 225 Resistance: EX 25 Melee Speed Boost 20 Evasion (%) 40 Recoil Reduction 3 Item Schematics ----------------- Phase Shifter | -7/Factory | Downloaded Arm. Medium Treads | -7/Factory | Hacked Combat Drone Bay | -7/Data Miner | Free Lgt. Regenerative Plating | -7/Data Miner | Free Exp. Flexi-carbon Leg | -7/Data Miner | Free Exp. Cesium-ion Thruster | -7/Data Miner | Free Exp. Terrain Scan Processor | -7/Data Miner | Free Exp. Targeting Computer | -7/Data Miner | Free Tactical Coordination Suite | -7/Data Miner | Free Plasma Sword | -7/Data Miner | Free Kinetic Spear | -7/Data Miner | Free Robot Schematics ------------------ I-36 Angel | -7/Data Miner | Free G-50 Soldier | -7/Data Miner | Free S-27 Virus | -7/Data Miner | Free Fabricated ------------ Flexi-carbon Leg | x2 | -7/Factory | Preloaded Flexi-carbon Leg | x2 | -7/Factory | Preloaded Alien Tech Used ----------------- None Achievements -------------- Unlimited Data Challenges ------------ None Game ------ Seed FactoryElectronNeutralizer Manual? 0 Play Time 02:12:00 Cumulative 138.3 hours Start 2022.01.12 @ 21:28:15 End 2022.01.13 @ 20:38:10 Sessions 7 Manual Loads 0 Difficulty Rogue Special Mode None Game No. 107 Rogue 107 Adventurer 0 Explorer 0 Win Type - Total 0 Types 0/0/0/0/0/0/0/0/0 Lore% 41 Gallery% 56 Achievement% 36 Wizard Run 0 Options --------- ASCII 0 Keyboard 0 Movement Arrows Keybinds 0 Fullscreen 1 Font 14/Terminus Map View 72x54 Tactical HUD 1 Map Filters NONE Filters NONE Steam 1 RUN: bc809a29-8b88-4b58-a4d3-06457f868fc2